fUSD/lending_fUSD_20250208
["ID","MTS","AMOUNT","RATE_DAILY","PERIOD"]
[352358552,1739057442048,-500.0,0.00010899,2]
[352358554,1739057442057,-500.0,0.00010899,2]
[352358556,1739057442066,-500.0,0.00010899,2]
[352358558,1739057442075,-500.0,0.00010899,2]
[352358560,1739057442084,-500.0,0.00010899,2]
[352358562,1739057442093,-500.0,0.00010899,2]
[352358564,1739057442102,-500.0,0.00010899,2]
[352358566,1739057442111,-500.0,0.00010899,2]
[352358568,1739057442121,-500.0,0.00010899,2]
[352358570,1739057442130,-500.0,0.00010899,2]
[352358572,1739057442139,-500.0,0.00010899,2]
[352358574,1739057442149,-500.0,0.00010899,2]
[352358576,1739057442159,-500.0,0.00010899,2]
[352358578,1739057442168,-500.0,0.00010899,2]
[352358580,1739057442178,-1082.61,0.00010899,2]
[352358582,1739057442189,-500.0,0.00010899,2]
[352358584,1739057442197,-670.41,0.00010899,2]
[352358586,1739057442206,-547.92,0.00010899,2]
[352358588,1739057442216,-699.01,0.00010899,2]
[352358590,1739057442225,-852.52,0.00010899,2]
[352358592,1739057442234,-500.0,0.00010899,2]
[352358594,1739057442245,-500.0,0.00010899,2]
[352358596,1739057442254,-500.0,0.00010899,2]
[352358598,1739057442263,-500.0,0.00010899,2]
[352358600,1739057442273,-500.0,0.00010899,2]
[352358602,1739057442282,-738.29,0.00010899,2]
[352358604,1739057442291,-557.54,0.00010899,2]
[352358606,1739057442300,-353.96,0.00010899,2]
[352358608,1739057442309,-500.0,0.00010899,2]
[352358610,1739057442318,-500.0,0.00010899,2]
[352358612,1739057442328,-500.0,0.00010899,2]
[352358614,1739057442337,-500.0,0.00010899,2]
[352358616,1739057442346,-597.19,0.00010899,2]
[352358618,1739057442356,-654.66,0.00010899,2]
[352358620,1739057442365,-720.96,0.00010899,2]
[352358622,1739057442374,-500.0,0.00010899,2]
[352358623,1739057442382,-500.0,0.00010899,2]
[352358626,1739057442392,-1000.0,0.00010899,2]
[352358628,1739057442402,-500.0,0.00010899,2]
[352358630,1739057442411,-500.0,0.00010899,2]
[352358632,1739057442422,-504.93,0.00010899,2]
[352358634,1739057442437,-500.0,0.00010899,2]
[352358636,1739057442447,-500.0,0.00010899,2]
[352358638,1739057442456,-540.74,0.00010899,2]
[352358640,1739057442465,-500.0,0.00010899,2]
[352358642,1739057442474,-563.71,0.00010899,2]
[352358644,1739057442483,-500.0,0.00010899,2]
[352358646,1739057442492,-500.0,0.00010899,2]
[352358647,1739057442501,-541.39,0.00010899,2]
[352358649,1739057442511,-500.0,0.00010899,2]
[352358651,1739057442520,-588.51,0.00010899,2]
[352358653,1739057442529,-500.0,0.00010899,2]
[352358656,1739057442539,-634.39,0.00010899,2]
[352358658,1739057442549,-500.0,0.00010899,2]
[352358660,1739057442558,-632.62,0.00010899,2]
[352358662,1739057442568,-528.33,0.00010899,2]
[352358664,1739057442577,-500.0,0.00010899,2]
[352358665,1739057442586,-500.0,0.00010899,2]
[352358667,1739057442595,-500.0,0.00010899,2]
[352358669,1739057442604,-500.0,0.00010899,2]
[352358671,1739057442613,-542.17,0.00010899,2]
[352358673,1739057442622,-500.0,0.00010899,2]
[352358675,1739057442631,-500.0,0.00010899,2]
[352358677,1739057442641,-500.0,0.00010899,2]
[352358679,1739057442650,-558.04,0.00010899,2]
[352358681,1739057442659,-1329.72,0.00010899,2]
[352358683,1739057442668,-500.0,0.00010899,2]
[352358685,1739057442677,-500.0,0.00010899,2]
[352358687,1739057442686,-500.0,0.00010899,2]
[352358689,1739057442696,-500.0,0.00010899,2]
[352358691,1739057442705,-786.59,0.00010899,2]
[352358693,1739057442714,-587.09,0.00010899,2]
[352358695,1739057442722,-500.0,0.00010899,2]
[352358697,1739057442732,-500.0,0.00010899,2]
[352358699,1739057442740,-500.0,0.00010899,2]
[352358701,1739057442749,-500.0,0.00010899,2]
[352358703,1739057442759,-539.33,0.00010899,2]
[352358704,1739057442767,-500.0,0.00010899,2]
[352358707,1739057442777,-500.0,0.00010899,2]
[352358709,1739057442787,-500.0,0.00010899,2]
[352358710,1739057442796,-646.6,0.00010899,2]
[352358713,1739057442806,-500.0,0.00010899,2]
[352358714,1739057442815,-380.04921826,0.00010899,2]
[352358716,1739057442825,-875.05,0.00010899,2]
[352358719,1739057442834,-500.0,0.00010899,2]
[352358720,1739057442844,-725.71,0.00010899,2]
[352358722,1739057442853,-500.0,0.00010899,2]
[352358724,1739057442861,-500.0,0.00010899,2]
[352358726,1739057442870,-570.01,0.00010899,2]
[352358728,1739057442879,-500.0,0.00010899,2]
[352358730,1739057442889,-519.47,0.00010899,2]
[352358732,1739057442898,-500.0,0.00010899,2]
[352358734,1739057442907,-1512.04,0.00010899,2]
[352358736,1739057442917,-500.0,0.00010899,2]
[352358738,1739057442925,-2921.46,0.00010899,2]
[352358740,1739057442935,-500.0,0.00010899,2]
[352358742,1739057442944,-460.1812114,0.00010899,2]
[352358744,1739057442952,-500.0,0.00010899,2]
[352358746,1739057442962,-500.0,0.00010899,2]
[352358748,1739057442971,-500.0,0.00010899,2]
[352358750,1739057442980,-500.0,0.00010899,2]
[352358752,1739057442989,-500.0,0.00010899,2]
[352358754,1739057442999,-587.44,0.00010899,2]
[352358756,1739057443008,-500.0,0.00010899,2]
[352358758,1739057443017,-500.0,0.00010899,2]
[352358760,1739057443026,-500.0,0.00010899,2]
[352358762,1739057443035,-500.0,0.00010899,2]
[352358764,1739057443045,-500.0,0.00010899,2]
[352358766,1739057443054,-150.0,0.00010899,2]
[352358768,1739057443063,-500.0,0.00010899,2]
[352358770,1739057443072,-500.0,0.00010899,2]
[352358772,1739057443081,-500.0,0.00010899,2]
[352358774,1739057443091,-500.0,0.00010899,2]
[352358776,1739057443100,-500.0,0.00010899,2]
[352358778,1739057443109,-530.85,0.00010899,2]
[352358780,1739057443118,-500.0,0.00010899,2]
[352358782,1739057443127,-616.66,0.00010899,2]
[352358784,1739057443137,-203.56719733,0.00010899,2]
[352358786,1739057443147,-500.0,0.00010899,2]
[352358788,1739057443159,-500.0,0.00010899,2]
[352358790,1739057443168,-250.0,0.00010899,2]
[352358792,1739057443177,-444.90199744,0.000109,2]
[352358794,1739057443186,-922.0,0.000109,2]
[352358796,1739057443197,-2466098.5476038,0.000109,2]
[352358798,1739057443207,-74321.58342487,0.000109,2]
[352358800,1739057443217,-2000.0,0.000109,2]
[352358802,1739057443228,-150.0,0.000109,2]
[352358804,1739057443238,-161.32982169,0.000109,2]
[352358806,1739057443247,-161.32982169,0.000109,2]
[352358808,1739057443256,-746.0,0.000109,2]
[352358810,1739057443274,-231.0,0.000109,2]
[352358813,1739057443284,-233.54462262,0.000109,2]
[352358816,1739057443294,-207.56776489,0.000109,2]
[352358819,1739057443304,-605.71179862,0.000109,2]
[352358822,1739057443313,-150.0,0.00010902,2]
[352358824,1739057443323,-150.0,0.00010903,2]
[352358827,1739057443332,-150.0,0.00010906,2]
[352358829,1739057443341,-150.0,0.00010906,2]
[352358832,1739057443351,-150.0,0.00010907,2]
[352358835,1739057443360,-150.0,0.00010909,2]
[352358838,1739057443369,-150.0,0.0001091,2]
[352358841,1739057443379,-150.0,0.00010911,2]
[352358843,1739057443388,-150.0,0.00010917,2]
[352358847,1739057443397,-150.0,0.00010918,2]
[352358849,1739057443407,-150.0,0.00010918,2]
[352358852,1739057443416,-150.0,0.00010919,2]
[352358855,1739057443425,-150.0,0.00010922,2]
[352358858,1739057443434,-262.99849374,0.00010926,2]
[352358861,1739057443444,-150.0,0.00010928,2]
[352358863,1739057443453,-150.0,0.00010932,2]
[352358866,1739057443462,-150.0,0.00010932,2]
[352358869,1739057443471,-444.90199744,0.00010933,2]
[352358872,1739057443480,-196.01064639,0.00010933,2]
[352358875,1739057443490,-150.0,0.00010933,2]
[352358878,1739057443499,-150.0,0.00010935,2]
[352358880,1739057443509,-150.0,0.00010938,2]
[352358883,1739057443518,-150.0,0.00010939,2]
[352358886,1739057443529,-1000.0,0.00010943,2]
[352358890,1739057443539,-150.0,0.00010944,2]
[352358893,1739057443549,-1000.0,0.00010944,2]
[352358896,1739057443558,-150.0,0.00010945,2]
[352358899,1739057443568,-150.0,0.00010947,2]
[352358902,1739057443578,-150.0,0.00010948,2]
[352358904,1739057443587,-434.61,0.00010948,2]
[352358907,1739057443600,-500.0,0.00010948,2]
[352358910,1739057443614,-500.0,0.00010948,2]
[352358914,1739057443624,-500.0,0.00010948,2]
[352358917,1739057443633,-500.0,0.00010948,2]
[352358919,1739057443643,-500.0,0.00010948,2]
[352358922,1739057443652,-500.0,0.00010948,2]
[352358925,1739057443662,-500.0,0.00010948,2]
[352358928,1739057443672,-500.0,0.00010948,2]
[352358931,1739057443681,-500.0,0.00010948,2]
[352358933,1739057443690,-500.0,0.00010948,2]
[352358935,1739057443700,-500.0,0.00010948,2]
[352358937,1739057443709,-571.91,0.00010948,2]
[352358939,1739057443718,-500.0,0.00010948,2]
[352358942,1739057443727,-506.75,0.00010948,2]
[352358945,1739057443737,-500.0,0.00010948,2]
[352358948,1739057443746,-500.0,0.00010948,2]
[352358950,1739057443755,-500.0,0.00010948,2]
[352358952,1739057443764,-500.0,0.00010948,2]
[352358954,1739057443773,-500.0,0.00010948,2]
[352358956,1739057443782,-500.0,0.00010948,2]
[352358958,1739057443791,-500.0,0.00010948,2]
[352358960,1739057443800,-500.0,0.00010948,2]
[352358962,1739057443810,-500.0,0.00010948,2]
[352358964,1739057443819,-500.0,0.00010948,2]
[352358966,1739057443828,-500.0,0.00010948,2]
[352358968,1739057443837,-500.0,0.00010948,2]
[352358969,1739057443846,-500.0,0.00010948,2]
[352358972,1739057443856,-500.0,0.00010948,2]
[352358974,1739057443866,-500.0,0.00010948,2]
[352358976,1739057443876,-500.0,0.00010948,2]
[352358978,1739057443885,-500.0,0.00010948,2]
[352358980,1739057443894,-500.0,0.00010948,2]
[352358982,1739057443904,-534.02,0.00010948,2]
[352358983,1739057443913,-570.78,0.00010948,2]
[352358986,1739057443923,-500.0,0.00010948,2]
[352358987,1739057443932,-500.0,0.00010948,2]
[352358989,1739057443941,-500.0,0.00010948,2]
[352358991,1739057443950,-500.0,0.00010948,2]
[352358992,1739057443959,-500.0,0.00010948,2]
[352358993,1739057443968,-500.0,0.00010948,2]
[352358994,1739057443978,-500.0,0.00010948,2]
[352358995,1739057443987,-500.0,0.00010948,2]
[352358996,1739057443996,-500.0,0.00010948,2]
[352358997,1739057444005,-500.0,0.00010948,2]
[352358998,1739057444014,-530.23,0.00010948,2]
[352359000,1739057444023,-568.95,0.00010948,2]
[352359001,1739057444033,-150.0,0.00010948,2]
[352359002,1739057444043,-500.0,0.00010949,2]
[352359003,1739057444053,-150.0,0.0001095,2]
[352359004,1739057444062,-150.0,0.00010953,2]
[352359005,1739057444071,-150.0,0.00010955,2]
[352359006,1739057444081,-150.0,0.00010956,2]
[352359007,1739057444090,-150.0,0.00010958,2]
[352359009,1739057444099,-150.0,0.00010959,2]
[352359011,1739057444108,-300.0,0.00010959,2]
[352359013,1739057444118,-150.0,0.00010959,2]
[352359015,1739057444127,-150.0,0.0001096,2]
[352359017,1739057444136,-300.0,0.00010963,2]
[352359019,1739057444147,-150.0,0.00010964,2]
[352359021,1739057444159,-150.0,0.00010964,2]
[352359023,1739057444168,-150.0,0.00010965,2]
[352359025,1739057444177,-150.0,0.00010965,2]
[352359027,1739057444186,-444.90199744,0.00010966,2]
[352359029,1739057444196,-150.0,0.00010967,2]
[352359031,1739057444205,-300.0,0.00010969,2]
[352359033,1739057444214,-700.0,0.0001097,2]
[352359035,1739057444224,-150.0,0.00010971,2]
[352359037,1739057444233,-300.0,0.00010972,2]
[352359039,1739057444243,-500.0,0.00010973,2]
[352359041,1739057444253,-500.0,0.00010973,2]
[352359043,1739057444262,-150.0,0.00010978,2]
[352359045,1739057444271,-150.0,0.00010985,2]
[352359047,1739057444280,-150.0,0.00010989,2]
[352359049,1739057444289,-423.0022458,0.00010991,2]
[352359051,1739057444298,-174.4893091,0.00010991,2]
[352359053,1739057444307,-377.9578816,0.00010991,2]
[352359055,1739057444316,-1682.15087,0.00010998,2]
[352359057,1739057444326,-1248.36589689,0.00010999,3]
[352359059,1739057444335,-354.9220946,0.00010999,2]
[352359061,1739057444344,-200.0,0.00010999,2]
[352359063,1739057444353,-200.0,0.00010999,2]
[352359065,1739057444362,-444.90199744,0.00010999,2]
[352359067,1739057444371,-1209.92153499,0.00011,2]
[352359069,1739057444380,-1091755.40192469,0.00011,2]
[352359087,1739057444758,-503.19789908,0.00010898,2]
[352359088,1739057444767,-500.0,0.00010899,2]
[352359089,1739057444776,-147.56137612,0.00011,2]
[352359090,1739057444787,-1607.00258999,0.00011,2]
[352359093,1739057445040,-1088.78718654,0.00010681,2]
[352359094,1739057445049,-500.0,0.00010898,2]
[352359095,1739057445058,-500.0,0.00010898,2]
[352359096,1739057445068,-500.0,0.00010898,2]
[352359097,1739057445077,-9612.67862994,0.00011,2]
[352359098,1739057445099,-120766.43506646,0.00011,2]
[352359099,1739057445111,-390.3465137,0.00011,2]
[352359100,1739057445126,-412926.19246924,0.00011,2]
[352359103,1739057446487,-350.0,0.00010898,2]
[352359104,1739057446520,-150.0,0.00010898,2]
[352359105,1739057446531,-500.0,0.00010898,2]
[352359106,1739057446542,-500.0,0.00010898,2]
[352359107,1739057446552,-500.0,0.00010899,2]
[352359108,1739057446563,-500.0,0.00010899,2]
[352359109,1739057446574,-51795.0,0.00011,2]
[352359110,1739057446646,-102049.92326181,0.00011,2]
[352359111,1739057446659,-3806.15415052,0.00011,2]
[352359113,1739057446979,-564.85719573,0.00010898,2]
[352359116,1739057446991,-569.06280427,0.00010898,2]
[352359117,1739057447000,-6708.44853939,0.00011,2]
[352359118,1739058226469,10000.0,0.0002,120]
[352359119,1739058344745,-1018.29938918,0.00015,30]
[352359120,1739058344792,-1500.0,0.000164,30]
[352359121,1739058344840,-2091.62,0.00016438,60]
[352359122,1739058344885,-2091.62,0.00016438,60]
[352359123,1739058344929,-2091.62,0.00016438,60]
[352359124,1739058344972,-2091.62,0.00016438,60]
[352359125,1739058345017,-2091.62,0.00016438,60]
[352359126,1739058345063,-2091.62,0.00016438,60]
[352359127,1739058345108,-2091.62,0.00016438,60]
[352359128,1739058345150,-2091.62,0.00016438,60]
[352359129,1739058345192,-2091.62,0.00016438,60]
[352359130,1739058345232,-2091.62,0.00016438,60]
[352359131,1739058345272,-2091.62,0.00016438,60]
[352359132,1739058345311,-2091.62,0.00016438,60]
[352359133,1739058345351,-2091.62,0.00016438,60]
[352359134,1739058345390,-2091.62,0.00016438,60]
[352359135,1739058345429,-2091.62,0.00016438,60]
[352359136,1739058345470,-2091.62,0.00016438,60]
[352359137,1739058345509,-2091.62,0.00016438,60]
[352359138,1739058345550,-2091.62,0.00016438,60]
[352359139,1739058345588,-2091.62,0.00016438,60]
[352359140,1739058345627,-2091.62,0.00016438,60]
[352359141,1739058345664,-2091.62,0.00016438,60]
[352359142,1739058345703,-2091.62,0.00016438,60]
[352359143,1739058345743,-2091.62,0.00016438,60]
[352359144,1739058345785,-2091.69577324,0.00016438,60]
[352359145,1739058345834,-285.14,0.00016658,30]
[352359146,1739058345879,-2582.48690508,0.0001688,30]
[352359147,1739058345928,-76400.0,0.00018,30]
[352359148,1739058345973,-569.47,0.00018,30]
[352359149,1739058346028,-5000.0258,0.000192,30]
[352359150,1739058346074,-5413.46,0.000192,31]
[352359151,1739058346121,-5413.46,0.000192,31]
[352359152,1739058346166,-5413.46,0.000192,31]
[352359153,1739058346211,-5413.46,0.000192,31]
[352359154,1739058346452,-5413.46,0.000192,31]
[352359155,1739058346502,-5413.46,0.000192,31]
[352359156,1739058346547,-5413.46,0.000192,31]
[352359157,1739058346592,-5413.46,0.000192,31]
[352359158,1739058346636,-5413.46,0.000192,31]
[352359159,1739058346681,-5413.46,0.000192,31]
[352359160,1739058346724,-5413.46,0.000192,31]
[352359161,1739058346770,-5413.46,0.000192,31]
[352359162,1739058346814,-5413.46,0.000192,31]
[352359163,1739058346861,-5413.46,0.000192,31]
[352359164,1739058346912,-5413.46,0.000192,31]
[352359165,1739058346962,-5413.46,0.000192,31]
[352359166,1739058347009,-500.0,0.000192,30]
[352359167,1739058347054,-283.23421082,0.000192,30]
[352359168,1739058347099,-285.14,0.00019242,30]
[352359169,1739058347144,-2618.4779536,0.0001959,30]
[352359170,1739058347186,-2840.07,0.000198,30]
[352359171,1739058347230,-1000.0,0.00019999,30]
[352359172,1739058347272,-25000.0,0.0002,30]
[352359173,1739058347312,-1000.0,0.0002,30]
[352359174,1739058347353,-1000.0,0.0002,30]
[352359175,1739058347392,-1000.0,0.0002,30]
[352359176,1739058347432,-1000.0,0.0002,30]
[352359177,1739058347475,-1000.0,0.0002,30]
[352359178,1739058347520,-484.7007115,0.0002,30]
[352359179,1739058347562,-3855.35295502,0.0002,30]
[352359180,1739058347602,-1100.0,0.0002,40]
[352359181,1739058347643,-1058.35718422,0.0002,30]
[352359182,1739058347684,-11418.3869854,0.0002,30]
[352359183,1739058347726,-105867.17777268,0.0002,30]
[352359184,1739058347776,-150.0,0.00020173,120]
[352359185,1739058347817,-150.0,0.00020243,120]
[352359186,1739058347859,-150.0,0.0002032,120]
[352359187,1739058347902,-150.0,0.00020396,120]
[352359188,1739058347945,-150.0,0.00020532,120]
[352359189,1739058347988,-150.0,0.00020619,120]
[352359190,1739058348032,-150.0,0.00020729,120]
[352359191,1739058348087,-150.0,0.00020939,120]
[352359192,1739058348132,-1000.0,0.00021,120]
[352359193,1739058348175,-150.0,0.00021019,120]
[352359194,1739058348219,-150.0,0.00021056,120]
[352359195,1739058348265,-150.0,0.00021316,120]
[352359196,1739058348311,-150.0,0.00021462,120]
[352359197,1739058348355,-6622.11495953,0.000215,30]
[352359198,1739058348400,-150.0,0.00021561,120]
[352359199,1739058348443,-150.0,0.00021573,120]
[352359200,1739058348488,-25000.0,0.00021595,30]
[352359201,1739058348530,-25000.0,0.00021595,30]
[352359202,1739058348576,-25000.0,0.00021595,30]
[352359203,1739058348618,-25000.0,0.00021595,30]
[352359204,1739058348660,-8280.49467123,0.00021595,30]
[352359205,1739058348702,-5729.24199364,0.00021595,30]
[352359206,1739058348746,-5965.04216823,0.000216,30]
[352359207,1739058348789,-150.0,0.00021603,120]
[352359208,1739058348833,-150.0,0.00021725,120]
[352359209,1739058348877,-150.0,0.00021734,120]
[352359210,1739058348923,-150.0,0.00021735,120]
[352359211,1739058348966,-150.0,0.0002177,120]
[352359212,1739058349011,-150.0,0.00021779,120]
[352359213,1739058349057,-285.14,0.00021826,30]
[352359214,1739058349105,-150.0,0.00021843,120]
[352359215,1739058349150,-531.93668272,0.00021917,120]
[352359216,1739058349197,-3000.0,0.00022,31]
[352359217,1739058349243,-16390.01681116,0.00022,30]
[352359218,1739058349288,-1000.0,0.00022,120]
[352359219,1739058349336,-2849.4,0.00022,120]
[352359220,1739058349387,-500.0,0.0002248,120]
[352359221,1739058349435,-364.93260033,0.00022739,120]
[352359222,1739058349488,-5413.46,0.000228,31]
[352359223,1739058349548,-5413.46,0.000228,31]
[352359224,1739058349599,-5413.46,0.000228,31]
[352359225,1739058349649,-5413.46,0.000228,31]
[352359226,1739058349697,-5413.46,0.000228,31]
[352359227,1739058349745,-5413.46,0.000228,31]
[352359228,1739058349790,-5413.46,0.000228,31]
[352359229,1739058349838,-5413.46,0.000228,31]
[352359230,1739058349887,-5413.46,0.000228,31]
[352359231,1739058349935,-5413.46,0.000228,31]
[352359232,1739058349981,-5413.46,0.000228,31]
[352359233,1739058350031,-5413.46,0.000228,31]
[352359234,1739058350081,-5413.46,0.000228,31]
[352359235,1739058350129,-5413.46,0.000228,31]
[352359236,1739058350178,-5413.46,0.000228,31]
[352359237,1739058350226,-5413.46,0.000228,31]
[352359238,1739058350273,-5413.46,0.000228,31]
[352359239,1739058350318,-5413.46,0.000228,31]
[352359240,1739058350365,-5413.46,0.000228,31]
[352359241,1739058350411,-5413.46,0.000228,31]
[352359242,1739058350458,-5413.46,0.000228,31]
[352359243,1739058350505,-5413.46,0.000228,31]
[352359244,1739058350550,-5413.46,0.000228,31]
[352359245,1739058350593,-5413.46,0.000228,31]
[352359246,1739058350634,-2564.66278,0.00022888,30]
[352359247,1739058350874,-240.0,0.00023,30]
[352359248,1739058350917,-500.0,0.00023,30]
[352359249,1739058350960,-500.0,0.00023,30]
[352359250,1739058351004,-500.0,0.00023,30]
[352359251,1739058351048,-500.0,0.00023,30]
[352359252,1739058351090,-500.0,0.00023,30]
[352359253,1739058351134,-500.0,0.00023,30]
[352359254,1739058351177,-500.0,0.00023,30]
[352359255,1739058351218,-500.0,0.00023,30]
[352359256,1739058351261,-500.0,0.00023,30]
[352359257,1739058351304,-500.0,0.00023,30]
[352359258,1739058351347,-500.0,0.00023,30]
[352359259,1739058351389,-500.0,0.00023,30]
[352359260,1739058351433,-500.0,0.00023,30]
[352359261,1739058351475,-500.0,0.00023,30]
[352359262,1739058351518,-500.0,0.00023,30]
[352359263,1739058351560,-500.0,0.00023,30]
[352359264,1739058351601,-500.0,0.00023,30]
[352359265,1739058351642,-547.45283598,0.00023,30]
[352359266,1739058351683,-500.0,0.00023,30]
[352359267,1739058351725,-500.0,0.00023,30]
[352359268,1739058351767,-500.0,0.00023,30]
[352359269,1739058351807,-302.85701221,0.00023,30]
[352359270,1739058351847,-1300.0,0.00023,30]
[352359271,1739058351887,-649.86526592,0.00023,30]
[352359272,1739058351928,-1300.0,0.00023,30]
[352359273,1739058351968,-1300.0,0.00023,30]
[352359274,1739058352011,-1300.0,0.00023,30]
[352359275,1739058352054,-1300.0,0.00023,30]
[352359276,1739058352098,-1300.0,0.00023,30]
[352359277,1739058352139,-1300.0,0.00023,30]
[352359278,1739058352181,-1300.0,0.00023,30]
[352359279,1739058352222,-1300.0,0.00023,30]
[352359280,1739058352263,-1300.0,0.00023,30]
[352359281,1739058352304,-1300.0,0.00023,30]
[352359282,1739058352344,-1300.0,0.00023,30]
[352359283,1739058352385,-1300.0,0.00023,30]
[352359284,1739058352424,-1300.0,0.00023,30]
[352359285,1739058352468,-1300.0,0.00023,30]
[352359286,1739058352509,-700.0,0.00023,30]
[352359287,1739058352547,-700.0,0.00023,30]
[352359288,1739058352589,-700.0,0.00023,30]
[352359289,1739058352628,-700.0,0.00023,30]
[352359290,1739058352668,-700.0,0.00023,30]
[352359291,1739058352706,-700.0,0.00023,30]
[352359292,1739058352747,-700.0,0.00023,30]
[352359293,1739058352789,-700.0,0.00023,30]
[352359294,1739058352828,-700.0,0.00023,30]
[352359295,1739058352868,-700.0,0.00023,30]
[352359296,1739058352908,-700.0,0.00023,30]
[352359297,1739058352949,-700.0,0.00023,30]
[352359298,1739058352989,-500.0,0.00023,30]
[352359299,1739058353031,-500.0,0.00023,30]
[352359300,1739058353070,-700.0,0.00023,30]
[352359301,1739058353109,-700.0,0.00023,30]
[352359302,1739058353150,-7071.14695353,0.00023,30]
[352359303,1739058353191,-707.17930952,0.00023,30]
[352359304,1739058353232,-1017.00338094,0.00023,120]
[352359305,1739058353271,-1000.0,0.00023,120]
[352359306,1739058353315,-1559.69353367,0.0002301,120]
[352359307,1739058353355,-2564.66278,0.00023088,30]
[352359308,1739058353396,-2564.66278,0.00023288,30]
[352359309,1739058353435,-500.0,0.0002332,120]
[352359310,1739058353475,-150.0,0.00023374,120]
[352359311,1739058353515,-2564.66278,0.00023488,30]
[352359312,1739058353553,-2000.0,0.00023585,120]
[352359313,1739058353593,-2564.66278,0.00023688,30]
[352359314,1739058353632,-2564.66278,0.00023888,30]
[352359315,1739058353672,-13614.66242888,0.00024,30]
[352359316,1739058353710,-1100.0,0.00024,40]
[352359317,1739058353750,-98259.8943057,0.00024,120]
[352359318,1739058353790,-1000.0,0.00024,120]
[352359319,1739058353829,-173.5239137,0.00024,120]
[352359320,1739058353869,-2564.66278,0.00024088,30]
[352359321,1739058353908,-2564.66278,0.00024288,30]
[352359322,1739058353951,-285.14,0.0002441,30]
[352359323,1739058353991,-2564.66278,0.00024488,30]
[352359324,1739058354035,-200.0,0.0002465,120]
[352359325,1739058354079,-177.0,0.0002467,30]
[352359326,1739058354122,-177.0,0.0002467,30]
[352359327,1739058354164,-177.0,0.0002468,30]
[352359328,1739058354205,-177.0,0.0002468,30]
[352359329,1739058354249,-177.0,0.0002468,30]
[352359330,1739058354290,-177.43,0.0002468,30]
[352359331,1739058354331,-2564.66278,0.00024688,30]
[352359332,1739058354370,-177.0,0.0002469,30]
[352359333,1739058354411,-177.0,0.0002469,30]
[352359334,1739058354451,-177.0,0.0002469,30]
[352359335,1739058354494,-177.0,0.0002469,30]
[352359336,1739058354534,-2000.0,0.00024724,31]
[352359337,1739058354576,-2564.66278,0.00024888,30]
[352359338,1739058354615,-428.0,0.0002497,120]
[352359339,1739058354653,-428.0,0.0002497,120]
[352359340,1739058354693,-428.0,0.0002498,120]
[352359341,1739058354887,-428.0,0.0002498,120]
[352359342,1739058354931,-428.0,0.0002498,120]
[352359343,1739058354976,-428.7,0.0002498,120]
[352359344,1739058355020,-428.0,0.0002499,120]
[352359345,1739058355062,-428.0,0.0002499,120]